fUSD/lending_fUSD_20241123
["ID","MTS","AMOUNT","RATE_DAILY","PERIOD"]
[343120088,1732367459822,-266.9760164,0.00059452,120]
[343120089,1732367459831,-500.0,0.00059452,120]
[343120090,1732367459841,-510.81813448,0.00059452,120]
[343120091,1732367459850,-500.0,0.00059452,120]
[343120092,1732367459859,-500.0,0.00059452,120]
[343120093,1732367459869,-469.75505189,0.00059452,120]
[343120094,1732367459879,-500.0,0.00059452,120]
[343120095,1732367459889,-500.0,0.00059452,120]
[343120096,1732367459898,-514.26022548,0.00059452,120]
[343120097,1732367459909,-500.0,0.00059452,120]
[343120098,1732367459919,-500.0,0.00059452,120]
[343120099,1732367459932,-500.0,0.00059452,120]
[343120100,1732367459941,-500.0,0.00059452,7]
[343120101,1732367459950,-500.0,0.00059452,120]
[343120102,1732367459960,-511.94708441,0.00059452,120]
[343120103,1732367459970,-500.0,0.00059452,7]
[343120104,1732367459980,-630.4,0.00059452,120]
[343120105,1732367459989,-346.69369754,0.00059452,7]
[343120106,1732367459999,-519.64,0.00059452,120]
[343120107,1732367460008,-519.64,0.00059452,120]
[343120108,1732367460017,-500.0,0.00059452,120]
[343120109,1732367460027,-500.0,0.00059452,120]
[343120110,1732367460037,-514.1483017,0.00059452,120]
[343120111,1732367460046,-630.4,0.00059452,120]
[343120112,1732367460056,-630.4,0.00059452,120]
[343120113,1732367460066,-519.64,0.00059452,120]
[343120114,1732367460075,-630.4,0.00059452,120]
[343120115,1732367460085,-519.64,0.00059452,120]
[343120116,1732367460094,-630.4,0.00059452,120]
[343120117,1732367460104,-519.64,0.00059452,120]
[343120118,1732367460114,-519.64,0.00059452,120]
[343120119,1732367460126,-519.64,0.00059452,120]
[343120120,1732367460136,-416.66667,0.0005946,94]
[343120121,1732367460147,-159.1466688,0.00059473,15]
[343120122,1732367460157,-150.0,0.00059558,120]
[343120123,1732367460167,-151.0,0.00059698,120]
[343120124,1732367460176,-4923.00435436,0.00059698,2]
[343120125,1732367460192,-150.0,0.00059792,120]
[343120126,1732367460202,-409.22931076,0.00059796,120]
[343120127,1732367460213,-519.64,0.00059796,120]
[343120128,1732367460223,-500.0,0.00059797,120]
[343120129,1732367460232,-500.0,0.00059797,120]
[343120130,1732367460242,-500.0,0.00059797,120]
[343120131,1732367460252,-500.0,0.00059797,120]
[343120132,1732367460262,-509.87635002,0.00059797,120]
[343120133,1732367460272,-500.0,0.00059797,120]
[343120134,1732367460281,-500.0,0.00059797,120]
[343120135,1732367460291,-1044.96,0.00059797,120]
[343120136,1732367460306,-512.63264126,0.00059797,120]
[343120137,1732367460317,-500.0,0.00059797,120]
[343120138,1732367460327,-2023.48,0.00059797,120]
[343120139,1732367460337,-500.0,0.00059797,120]
[343120140,1732367460452,-500.0,0.00059797,120]
[343120141,1732367460462,-500.0,0.00059797,120]
[343120142,1732367460473,-500.0,0.00059797,120]
[343120143,1732367460482,-503.45785901,0.00059797,120]
[343120144,1732367460492,-500.0,0.00059797,120]
[343120145,1732367460502,-500.0,0.00059797,120]
[343120146,1732367460512,-500.0,0.00059797,120]
[343120147,1732367460522,-500.0,0.00059797,120]
[343120148,1732367460532,-512.89122495,0.00059797,120]
[343120149,1732367460542,-500.0,0.00059797,120]
[343120150,1732367460551,-500.0,0.00059797,120]
[343120151,1732367460561,-500.0,0.00059797,120]
[343120152,1732367460570,-513.80312347,0.00059797,120]
[343120153,1732367460579,-500.0,0.00059797,120]
[343120154,1732367460590,-548.62,0.00059797,120]
[343120155,1732367460599,-521.26306321,0.00059797,120]
[343120156,1732367460608,-500.0,0.00059797,120]
[343120157,1732367460619,-500.0,0.00059797,120]
[343120158,1732367460628,-500.0,0.00059797,120]
[343120159,1732367460638,-500.0,0.00059797,120]
[343120160,1732367460648,-168.0,0.00059797,120]
[343120161,1732367460657,-500.0,0.00059797,120]
[343120162,1732367460667,-159.70621786,0.00059797,120]
[343120163,1732367460676,-371.77330763,0.00059797,120]
[343120164,1732367460689,-500.0,0.00059797,120]
[343120165,1732367460698,-643.42899225,0.00059797,120]
[343120166,1732367460708,-500.0,0.00059797,120]
[343120167,1732367460718,-500.0,0.00059797,120]
[343120168,1732367460728,-500.0,0.00059797,120]
[343120169,1732367460738,-1158.4,0.00059797,120]
[343120170,1732367460748,-500.0,0.00059797,120]
[343120171,1732367460758,-500.0,0.00059797,120]
[343120172,1732367460768,-500.0,0.00059797,120]
[343120173,1732367460778,-500.0,0.00059797,120]
[343120174,1732367460787,-500.0,0.00059797,120]
[343120175,1732367460798,-500.0,0.00059797,120]
[343120176,1732367460807,-500.0,0.00059797,120]
[343120177,1732367460817,-500.0,0.00059797,120]
[343120178,1732367460827,-500.0,0.00059797,120]
[343120179,1732367460836,-500.0,0.00059797,120]
[343120180,1732367460846,-500.0,0.00059797,120]
[343120181,1732367460855,-385.5,0.00059797,120]
[343120182,1732367460865,-500.0,0.00059797,2]
[343120183,1732367460874,-500.0,0.00059797,120]
[343120184,1732367460884,-500.0,0.00059797,120]
[343120185,1732367460893,-500.0,0.00059797,120]
[343120186,1732367460903,-220.76295435,0.00059797,120]
[343120187,1732367460913,-1161.21,0.00059797,120]
[343120188,1732367460922,-500.0,0.00059797,7]
[343120189,1732367460934,-500.0,0.00059797,120]
[343120190,1732367460944,-737.64,0.00059797,120]
[343120191,1732367460954,-500.0,0.00059797,120]
[343120192,1732367460963,-500.0,0.00059797,120]
[343120193,1732367460973,-500.0,0.00059797,120]
[343120194,1732367460983,-500.0,0.00059797,120]
[343120195,1732367460993,-794.15,0.00059797,120]
[343120196,1732367461004,-500.0,0.00059797,120]
[343120197,1732367461015,-666.2,0.00059797,120]
[343120198,1732367461025,-566.21,0.00059797,120]
[343120199,1732367461035,-500.0,0.00059797,120]
[343120200,1732367461045,-500.0,0.00059797,120]
[343120201,1732367461055,-500.0,0.00059797,120]
[343120202,1732367461066,-500.0,0.00059797,120]
[343120203,1732367461077,-330.96,0.00059797,120]
[343120204,1732367461087,-931.67,0.00059797,120]
[343120205,1732367461097,-1250.66,0.00059797,120]
[343120206,1732367461107,-945.95,0.00059797,21]
[343120207,1732367461117,-899.18,0.00059797,120]
[343120208,1732367461127,-743.95,0.00059797,120]
[343120209,1732367461136,-1564.87,0.00059797,120]
[343120210,1732367461146,-555.48,0.00059797,120]
[343120211,1732367461155,-655.93,0.00059797,120]
[343120212,1732367461165,-1016.21,0.00059797,120]
[343120213,1732367461175,-921.52,0.00059797,120]
[343120214,1732367461193,-500.0,0.00059797,120]
[343120215,1732367461204,-500.0,0.00059797,120]
[343120216,1732367461215,-397.28475898,0.00059797,120]
[343120217,1732367461227,-500.0,0.00059797,120]
[343120218,1732367461237,-834.8,0.00059797,120]
[343120219,1732367461247,-500.0,0.00059797,120]
[343120220,1732367461258,-500.0,0.00059797,120]
[343120221,1732367461270,-500.0,0.00059797,120]
[343120222,1732367461280,-500.0,0.00059797,120]
[343120223,1732367461290,-500.0,0.00059797,120]
[343120224,1732367461300,-500.0,0.00059797,120]
[343120225,1732367461309,-500.0,0.00059797,120]
[343120226,1732367461319,-1038.97,0.00059797,120]
[343120227,1732367461329,-667.22,0.00059797,120]
[343120228,1732367461339,-500.0,0.00059797,120]
[343120229,1732367461349,-500.0,0.00059797,120]
[343120230,1732367461359,-829.61,0.00059797,120]
[343120231,1732367461369,-721.38,0.00059797,120]
[343120232,1732367461379,-500.0,0.00059797,120]
[343120233,1732367461388,-979.55,0.00059797,120]
[343120234,1732367461399,-569.88,0.00059797,120]
[343120235,1732367461409,-500.0,0.00059797,120]
[343120236,1732367461418,-500.0,0.00059797,120]
[343120237,1732367461428,-500.0,0.00059797,120]
[343120238,1732367461440,-500.0,0.00059797,120]
[343120239,1732367461450,-500.0,0.00059797,120]
[343120240,1732367461459,-500.0,0.00059797,120]
[343120241,1732367461469,-590.27,0.00059797,120]
[343120242,1732367461480,-500.0,0.00059797,120]
[343120243,1732367461499,-503.34,0.00059797,120]
[343120244,1732367461512,-1207.16,0.00059797,120]
[343120245,1732367461521,-500.97,0.00059797,120]
[343120246,1732367461530,-935.7,0.00059797,120]
[343120247,1732367461540,-931.69,0.00059797,120]
[343120248,1732367461549,-5037.27,0.00059797,120]
[343120249,1732367461558,-500.0,0.00059797,120]
[343120250,1732367461568,-500.0,0.00059797,120]
[343120251,1732367461577,-500.0,0.00059797,120]
[343120252,1732367461587,-500.0,0.00059797,120]
[343120253,1732367461596,-500.0,0.00059797,120]
[343120254,1732367461605,-1918.87,0.00059797,120]
[343120255,1732367461615,-500.0,0.00059797,120]
[343120256,1732367461624,-1587.38,0.00059797,120]
[343120257,1732367461633,-636.350005,0.00059797,120]
[343120258,1732367461642,-4666.45,0.00059797,120]
[343120259,1732367461652,-527.38314069,0.00059797,120]
[343120260,1732367461661,-562.04,0.00059797,120]
[343120261,1732367461675,-500.0,0.00059797,120]
[343120262,1732367461694,-500.0,0.00059797,120]
[343120263,1732367461708,-500.0,0.00059797,120]
[343120264,1732367461718,-500.0,0.00059797,120]
[343120265,1732367461729,-1006.8,0.00059797,120]
[343120266,1732367461739,-710.3,0.00059797,120]
[343120267,1732367461749,-630.4,0.00059797,120]
[343120268,1732367461762,-500.0,0.00059798,120]
[343120269,1732367461779,-500.0,0.00059798,120]
[343120270,1732367461795,-506.1697042,0.00059798,120]
[343120271,1732367461805,-500.0,0.00059798,120]
[343120272,1732367461814,-616.84776097,0.00059798,120]
[343120273,1732367461824,-500.0,0.00059798,120]
[343120274,1732367461833,-500.0,0.00059798,120]
[343120275,1732367461843,-500.0,0.00059798,120]
[343120276,1732367461853,-500.0,0.00059798,120]
[343120277,1732367461863,-500.0,0.00059798,120]
[343120278,1732367461873,-500.16590075,0.00059798,120]
[343120279,1732367461882,-500.0,0.00059798,120]
[343120280,1732367461892,-972.63,0.00059798,120]
[343120281,1732367461901,-501.83388864,0.00059798,120]
[343120282,1732367461910,-500.0,0.00059798,120]
[343120283,1732367461919,-500.0,0.00059798,120]
[343120284,1732367461932,-500.0,0.00059798,120]
[343120285,1732367461941,-500.0,0.00059798,30]
[343120286,1732367461950,-500.0,0.00059798,120]
[343120287,1732367461960,-500.0,0.00059798,120]
[343120288,1732367461969,-500.0,0.00059798,120]
[343120289,1732367461979,-407.11088,0.00059798,120]
[343120290,1732367461988,-500.0,0.00059798,120]
[343120291,1732367461998,-523.04,0.00059798,120]
[343120292,1732367462007,-523.04,0.00059798,120]
[343120293,1732367462016,-529.76,0.00059798,120]
[343120294,1732367462025,-233.6620591,0.00059798,120]
[343120295,1732367462034,-500.0,0.00059798,120]
[343120296,1732367462043,-543.37125654,0.00059798,120]
[343120297,1732367462053,-636.32,0.00059798,120]
[343120298,1732367462062,-636.32,0.00059798,120]
[343120299,1732367462072,-500.0,0.00059798,120]
[343120300,1732367462081,-500.0,0.00059798,120]
[343120301,1732367462092,-500.0,0.00059798,120]
[343120302,1732367462101,-500.0,0.00059798,120]
[343120303,1732367462111,-500.0,0.00059798,120]
[343120304,1732367462121,-512.54055775,0.00059798,120]
[343120305,1732367462130,-500.0,0.00059798,120]
[343120306,1732367462140,-311.7414405,0.00059798,120]
[343120307,1732367462149,-510.27,0.00059798,120]
[343120308,1732367462158,-510.27,0.00059798,120]
[343120309,1732367462168,-500.0,0.00059798,120]
[343120310,1732367462177,-500.0,0.00059798,120]
[343120311,1732367462192,-529.90473614,0.00059798,120]
[343120312,1732367462201,-500.0,0.00059798,120]
[343120313,1732367462211,-500.0,0.00059798,2]
[343120314,1732367462221,-1044.96,0.00059798,120]
[343120315,1732367462231,-404.35533211,0.00059798,120]
[343120316,1732367462240,-264.47363646,0.00059798,120]
[343120317,1732367462249,-500.0,0.00059798,120]
[343120318,1732367462261,-2023.48,0.00059798,120]
[343120319,1732367462271,-510.03186591,0.00059798,120]
[343120320,1732367462281,-500.0,0.00059798,120]
[343120321,1732367462290,-500.0,0.00059798,120]
[343120322,1732367462299,-500.0,0.00059798,120]
[343120323,1732367462309,-638.23132132,0.00059798,120]
[343120324,1732367462318,-500.0,0.00059798,120]
[343120325,1732367462328,-169.56100507,0.00059798,120]
[343120326,1732367462431,-500.0,0.00059798,120]
[343120327,1732367462441,-500.0,0.00059798,120]
[343120328,1732367462451,-500.0,0.00059798,120]
[343120329,1732367462460,-500.0,0.00059798,120]
[343120330,1732367462470,-500.0,0.00059798,120]
[343120331,1732367462479,-354.15868707,0.00059798,120]
[343120332,1732367462487,-508.49399449,0.00059798,120]
[343120333,1732367462496,-500.0,0.00059798,120]
[343120334,1732367462505,-548.62,0.00059798,120]
[343120335,1732367462514,-500.0,0.00059798,120]
[343120336,1732367462522,-500.0,0.00059798,120]
[343120337,1732367462532,-506.73261069,0.00059798,120]
[343120338,1732367462541,-500.0,0.00059798,120]
[343120339,1732367462551,-500.0,0.00059798,120]
[343120340,1732367462560,-500.0,0.00059798,120]
[343120341,1732367462570,-500.0,0.00059798,120]
[343120342,1732367462579,-500.0,0.00059798,120]
[343120343,1732367462589,-531.16049533,0.00059798,120]
[343120344,1732367462598,-500.0,0.00059798,120]
[343120345,1732367462607,-500.0,0.00059798,120]
[343120346,1732367462616,-168.0,0.00059798,120]
[343120347,1732367462626,-500.0,0.00059798,120]
[343120348,1732367462635,-395.98,0.00059798,120]
[343120349,1732367462645,-500.0,0.00059798,120]
[343120350,1732367462655,-300.4983008,0.00059798,120]
[343120351,1732367462664,-500.0,0.00059798,120]
[343120352,1732367462673,-500.0,0.00059798,120]
[343120353,1732367462685,-203.93,0.00059798,120]
[343120354,1732367462695,-473.46,0.00059798,120]
[343120355,1732367462704,-500.0,0.00059798,120]
[343120356,1732367462713,-500.0,0.00059798,120]
[343120357,1732367462723,-398.96,0.00059798,120]
[343120358,1732367462733,-1158.4,0.00059798,120]
[343120359,1732367462742,-500.0,0.00059798,120]
[343120360,1732367462751,-500.0,0.00059798,120]
[343120361,1732367462761,-500.0,0.00059798,120]
[343120362,1732367462771,-500.0,0.00059798,120]
[343120363,1732367462780,-500.0,0.00059798,120]
[343120364,1732367462789,-500.0,0.00059798,120]
[343120365,1732367462799,-536.32,0.00059798,120]
[343120366,1732367462808,-500.0,0.00059798,120]
[343120367,1732367462818,-500.0,0.00059798,120]
[343120368,1732367462827,-500.0,0.00059798,120]
[343120369,1732367462837,-236.39,0.00059798,120]
[343120370,1732367462847,-500.0,0.00059798,120]
[343120371,1732367462856,-500.0,0.00059798,120]
[343120372,1732367462865,-1918.76,0.00059798,120]
[343120373,1732367462875,-500.0,0.00059798,120]
[343120374,1732367462884,-232.48048522,0.00059798,120]
[343120375,1732367462893,-500.0,0.00059798,120]
[343120376,1732367462902,-500.0,0.00059798,120]
[343120377,1732367462912,-500.0,0.00059798,120]
[343120378,1732367462921,-500.0,0.00059798,120]
[343120379,1732367462932,-500.0,0.00059798,120]
[343120380,1732367462942,-500.0,0.00059798,120]
[343120381,1732367462951,-237.64,0.00059798,120]
[343120382,1732367462960,-500.0,0.00059798,2]
[343120383,1732367462970,-500.0,0.00059798,120]
[343120384,1732367462979,-500.0,0.00059798,120]
[343120385,1732367462989,-500.0,0.00059798,120]
[343120386,1732367462998,-500.0,0.00059798,120]
[343120387,1732367463008,-500.0,0.00059798,120]
[343120388,1732367463017,-500.0,0.00059798,120]
[343120389,1732367463028,-1161.21,0.00059798,120]
[343120390,1732367463039,-500.0,0.00059798,7]
[343120391,1732367463049,-500.0,0.00059798,120]
[343120392,1732367463060,-737.64,0.00059798,120]
[343120393,1732367463070,-500.0,0.00059798,120]
[343120394,1732367463080,-500.0,0.00059798,120]
[343120395,1732367463091,-500.0,0.00059798,120]
[343120396,1732367463100,-500.0,0.00059798,120]
[343120397,1732367463110,-794.15,0.00059798,120]
[343120398,1732367463120,-500.0,0.00059798,120]
[343120399,1732367463130,-666.2,0.00059798,120]
[343120400,1732367463139,-566.21,0.00059798,120]
[343120401,1732367463149,-500.0,0.00059798,120]
[343120402,1732367463159,-500.0,0.00059798,120]
[343120403,1732367463169,-500.0,0.00059798,120]
[343120404,1732367463180,-500.0,0.00059798,120]
[343120405,1732367463195,-931.67,0.00059798,120]
[343120406,1732367463206,-1250.66,0.00059798,120]
[343120407,1732367463215,-945.95,0.00059798,21]
[343120408,1732367463227,-899.18,0.00059798,120]
[343120409,1732367463237,-743.95,0.00059798,120]
[343120410,1732367463248,-1564.87,0.00059798,120]
[343120411,1732367463259,-555.48,0.00059798,120]
[343120412,1732367463268,-655.93,0.00059798,120]
[343120413,1732367463278,-1016.21,0.00059798,120]
[343120414,1732367463287,-921.52,0.00059798,120]
[343120415,1732367463297,-500.0,0.00059798,120]
[343120416,1732367463306,-500.0,0.00059798,120]
[343120417,1732367463316,-500.0,0.00059798,120]
[343120418,1732367463325,-834.8,0.00059798,120]
[343120419,1732367463335,-500.0,0.00059798,120]
[343120420,1732367463345,-500.0,0.00059798,120]
[343120421,1732367463355,-500.0,0.00059798,120]
[343120422,1732367463365,-500.0,0.00059798,120]
[343120423,1732367463374,-500.0,0.00059798,120]
[343120424,1732367463383,-552.58,0.00059798,120]
[343120425,1732367463393,-1038.97,0.00059798,120]
[343120426,1732367463403,-667.22,0.00059798,120]
[343120427,1732367463412,-500.0,0.00059798,120]
[343120428,1732367463422,-500.0,0.00059798,120]
[343120429,1732367463432,-829.61,0.00059798,120]
[343120430,1732367463443,-721.38,0.00059798,120]
[343120431,1732367463453,-535.62,0.00059798,120]
[343120432,1732367463463,-979.55,0.00059798,120]
[343120433,1732367463473,-569.88,0.00059798,120]
[343120434,1732367463483,-500.0,0.00059798,120]
[343120435,1732367463494,-500.0,0.00059798,120]
[343120436,1732367463504,-276.04248184,0.00059798,120]
[343120437,1732367463514,-500.0,0.00059798,120]
[343120438,1732367463524,-500.0,0.00059798,120]
[343120439,1732367463534,-497.35222686,0.00059798,120]
[343120440,1732367463546,-225.8659612,0.00059798,120]
[343120441,1732367463748,-364.4040388,0.00059798,120]
[343120442,1732367463759,-500.0,0.00059798,120]
[343120443,1732367463769,-503.34,0.00059798,120]
[343120444,1732367463779,-1207.16,0.00059798,120]
[343120445,1732367463789,-500.97,0.00059798,120]
[343120446,1732367463799,-935.7,0.00059798,120]
[343120447,1732367463809,-931.69,0.00059798,120]
[343120448,1732367463819,-5037.27,0.00059798,120]
[343120449,1732367463829,-500.0,0.00059798,120]
[343120450,1732367463838,-500.0,0.00059798,120]
[343120451,1732367463849,-500.0,0.00059798,120]
[343120452,1732367463859,-500.0,0.00059798,120]
[343120453,1732367463869,-500.0,0.00059798,120]
[343120454,1732367463879,-1918.87,0.00059798,120]
[343120455,1732367463890,-500.0,0.00059798,120]
[343120456,1732367463901,-509.50249676,0.00059798,120]
[343120457,1732367463921,-1077.87750324,0.00059798,120]
[343120458,1732367463933,-4666.45,0.00059798,120]
[343120459,1732367463943,-562.04,0.00059798,120]
[343120460,1732367463953,-500.0,0.00059798,120]
[343120461,1732367464072,-500.0,0.00059798,120]
[343120462,1732367464083,-500.0,0.00059798,120]
[343120463,1732367464093,-500.0,0.00059798,120]
[343120464,1732367464103,-1006.8,0.00059798,120]
[343120465,1732367464113,-710.3,0.00059798,120]
[343120466,1732367464124,-630.4,0.00059798,120]
[343120467,1732367464134,-519.64,0.00059798,120]
[343120468,1732367464144,-205.14019794,0.00059799,120]
[343120469,1732367464154,-500.0,0.00059799,2]
[343120470,1732367464164,-636.02520221,0.00059799,2]
[343120471,1732367464174,-500.0,0.00059799,2]
[343120472,1732367464189,-156.5125238,0.00059799,2]
[343120473,1732367464200,-500.0,0.00059799,2]
[343120474,1732367464210,-500.0,0.00059799,2]
[343120475,1732367464221,-500.0,0.00059799,120]
[343120476,1732367464232,-539.08686362,0.00059799,120]
[343120477,1732367464242,-500.0,0.00059799,120]
[343120478,1732367464253,-507.04990571,0.00059799,120]
[343120479,1732367464265,-500.0,0.00059799,120]
[343120480,1732367464274,-500.0,0.00059799,120]
[343120481,1732367464284,-500.0,0.00059799,120]
[343120482,1732367464294,-500.0,0.00059799,120]
[343120483,1732367464304,-972.63,0.00059799,120]
[343120484,1732367464314,-500.23731397,0.00059799,120]
[343120485,1732367464326,-500.0,0.00059799,120]
[343120486,1732367464335,-491.79044,0.00059799,120]
[343120487,1732367464346,-500.0,0.00059799,30]
[343120488,1732367464355,-500.0,0.00059799,30]
[343120489,1732367464365,-500.0,0.00059799,120]
[343120490,1732367464375,-500.0,0.00059799,120]
[343120491,1732367464385,-174.0,0.00059799,120]
[343120492,1732367464395,-523.04,0.00059799,120]
[343120493,1732367464407,-636.32,0.00059799,120]
[343120494,1732367464417,-500.0,0.00059799,120]
[343120495,1732367464427,-466.81039955,0.00059799,120]
[343120496,1732367464438,-500.0,0.00059799,120]
[343120497,1732367464448,-500.0,0.00059799,120]
[343120498,1732367464459,-500.0,0.00059799,120]
[343120499,1732367464468,-500.0,0.00059799,120]
[343120500,1732367464479,-500.0,0.00059799,120]
[343120501,1732367464489,-500.0,0.00059799,120]
[343120502,1732367464499,-510.27,0.00059799,120]
[343120503,1732367464509,-491.67068,0.00059799,120]
[343120504,1732367464519,-500.0,0.00059799,120]
[343120505,1732367464531,-500.0,0.00059799,120]
[343120506,1732367464541,-500.0,0.00059799,120]
[343120507,1732367464551,-500.0,0.00059799,2]
[343120508,1732367464561,-500.0,0.00059799,120]
[343120509,1732367464572,-1044.96,0.00059799,120]
[343120510,1732367464582,-1044.96,0.00059799,120]
[343120511,1732367464592,-2023.48,0.00059799,120]
[343120512,1732367464601,-500.0,0.00059799,120]
[343120513,1732367464611,-2023.48,0.00059799,120]
[343120514,1732367464621,-500.0,0.00059799,120]
[343120515,1732367464631,-500.0,0.00059799,120]
[343120516,1732367464641,-270.20956447,0.00059799,120]
[343120517,1732367464650,-500.0,0.00059799,120]
[343120518,1732367464660,-500.0,0.00059799,120]
[343120519,1732367464670,-534.48593922,0.00059799,120]
[343120520,1732367464680,-500.0,0.00059799,120]
[343120521,1732367464692,-514.44083378,0.00059799,120]
[343120522,1732367464702,-548.62,0.00059799,120]
[343120523,1732367464712,-548.62,0.00059799,120]
[343120524,1732367464723,-500.0,0.00059799,120]
[343120525,1732367464733,-500.0,0.00059799,120]
[343120526,1732367464744,-500.0,0.00059799,120]
[343120527,1732367464755,-500.0,0.00059799,120]
[343120528,1732367464765,-500.0,0.00059799,120]
[343120529,1732367464775,-603.72,0.00059799,120]
[343120530,1732367464786,-500.0,0.00059799,120]
[343120531,1732367464797,-500.0,0.00059799,120]
[343120532,1732367464806,-500.0,0.00059799,120]
[343120533,1732367464816,-500.0,0.00059799,120]
[343120534,1732367464826,-168.0,0.00059799,120]
[343120535,1732367464836,-245.19,0.00059799,120]
[343120536,1732367464846,-500.0,0.00059799,120]
[343120537,1732367464855,-500.0,0.00059799,120]
[343120538,1732367464865,-500.0,0.00059799,120]
[343120539,1732367464875,-500.0,0.00059799,120]
[343120540,1732367464884,-500.0,0.00059799,120]
[343120541,1732367464901,-641.54,0.00059799,120]
[343120542,1732367464920,-1158.4,0.00059799,120]
[343120543,1732367464936,-1158.4,0.00059799,120]
[343120544,1732367464953,-500.0,0.00059799,120]
[343120545,1732367464972,-500.0,0.00059799,120]
[343120546,1732367464987,-500.0,0.00059799,120]
[343120547,1732367465004,-500.0,0.00059799,120]
[343120548,1732367465022,-500.0,0.00059799,120]
[343120549,1732367465041,-500.0,0.00059799,120]
[343120550,1732367465057,-500.0,0.00059799,120]
[343120551,1732367465075,-500.0,0.00059799,120]
[343120552,1732367465092,-1918.76,0.00059799,120]
[343120553,1732367465108,-1918.76,0.00059799,120]
[343120554,1732367465126,-500.0,0.00059799,120]
[343120555,1732367465139,-500.0,0.00059799,120]
[343120556,1732367465157,-500.0,0.00059799,120]
[343120557,1732367465173,-500.0,0.00059799,120]
[343120558,1732367465187,-500.0,0.00059799,120]
[343120559,1732367465206,-500.0,0.00059799,120]
[343120560,1732367465219,-500.0,0.00059799,120]
[343120561,1732367465233,-500.0,0.00059799,120]
[343120562,1732367465248,-500.0,0.00059799,120]
[343120563,1732367465264,-500.0,0.00059799,120]
[343120564,1732367465277,-500.0,0.00059799,120]
[343120565,1732367465292,-444.84,0.00059799,120]
[343120566,1732367465305,-500.0,0.00059799,2]
[343120567,1732367465319,-500.0,0.00059799,2]
[343120568,1732367465332,-500.0,0.00059799,120]
[343120569,1732367465345,-500.0,0.00059799,120]
[343120570,1732367465359,-518.28785548,0.00059799,120]
[343120571,1732367465374,-500.0,0.00059799,120]
[343120572,1732367465387,-500.0,0.00059799,120]
[343120573,1732367465402,-1161.21,0.00059799,120]
[343120574,1732367465416,-1161.21,0.00059799,120]
[343120575,1732367465430,-164.08,0.00059799,7]
[343120576,1732367465446,-203.14,0.00059799,120]
[343120577,1732367465461,-737.64,0.00059799,120]
[343120578,1732367465474,-737.64,0.00059799,120]
[343120579,1732367465487,-500.0,0.00059799,120]
[343120580,1732367465500,-500.0,0.00059799,120]
[343120581,1732367465513,-500.0,0.00059799,120]
[343120582,1732367465528,-500.0,0.00059799,120]
[343120583,1732367465538,-500.0,0.00059799,120]
[343120584,1732367465547,-500.0,0.00059799,120]
[343120585,1732367465557,-500.0,0.00059799,120]
[343120586,1732367465567,-500.0,0.00059799,120]
[343120587,1732367465577,-794.15,0.00059799,120]